[Event "*** Titled Tuesday Blitz"]
[Site "Chess.com"]
[Date "2021.04.06"]
[Round "9"]
[White "Vincent_Vega95"]
[Black "shimastream"]
[Result "0-1"]
[WhiteElo "2713"]
[BlackElo "2950"]
[TimeControl "180+1"]
[EndTime "11:46:35 PDT"]
[Termination "shimastream won by resignation"]

1. Nf3 {[%clk 0:03:00]} 1... e6 {[%clk 0:02:54.1]} 2. g3 {[%clk 0:02:58.8]} 2...
g5 {[%clk 0:02:52.9]} 3. Bg2 {[%clk 0:02:59.7]} 3... g4 {[%clk 0:02:46.6]} 4.
Nd4 {[%clk 0:03:00]} 4... Bg7 {[%clk 0:02:45.4]} 5. e3 {[%clk 0:02:56.2]} 5...
h5 {[%clk 0:02:44.3]} 6. h3 {[%clk 0:02:54]} 6... Nf6 {[%clk 0:02:23.2]} 7. c4
{[%clk 0:02:51.9]} 7... d5 {[%clk 0:02:18.7]} 8. cxd5 {[%clk 0:02:36.6]} 8...
exd5 {[%clk 0:02:17.1]} 9. Qc2 {[%clk 0:02:36.9]} 9... Na6 {[%clk 0:02:05.7]}
10. a3 {[%clk 0:02:35.7]} 10... c6 {[%clk 0:01:59.8]} 11. Nc3 {[%clk 0:02:17]}
11... Nc7 {[%clk 0:01:36.2]} 12. Nf5 {[%clk 0:01:42.2]} 12... Bxf5 {[%clk
0:01:34.8]} 13. Qxf5 {[%clk 0:01:43.1]} 13... Qd7 {[%clk 0:01:35.3]} 14. Qxd7+
{[%clk 0:01:38.3]} 14... Kxd7 {[%clk 0:01:36.2]} 15. d4 {[%clk 0:01:31.9]} 15...
Nce8 {[%clk 0:01:29.6]} 16. hxg4 {[%clk 0:01:30.5]} 16... hxg4 {[%clk
0:01:29.5]} 17. Rxh8 {[%clk 0:01:30.1]} 17... Bxh8 {[%clk 0:01:30.4]} 18. Ke2
{[%clk 0:01:25.3]} 18... Nd6 {[%clk 0:01:30.4]} 19. Bd2 {[%clk 0:01:26]} 19...
Bg7 {[%clk 0:01:29.3]} 20. Rh1 {[%clk 0:01:25.9]} 20... Rh8 {[%clk 0:01:29.1]}
21. Rxh8 {[%clk 0:01:26.3]} 21... Bxh8 {[%clk 0:01:30]} 22. b3 {[%clk
0:01:26.8]} 22... Ke6 {[%clk 0:01:26.2]} 23. Kd3 {[%clk 0:01:26.9]} 23... Kf5
{[%clk 0:01:24.8]} 24. Na4 {[%clk 0:01:24.6]} 24... Nfe4 {[%clk 0:01:24]} 25.
Be1 {[%clk 0:01:24.8]} 25... Bf6 {[%clk 0:01:21.7]} 26. Bf1 {[%clk 0:01:20.3]}
26... Nb5 {[%clk 0:01:19.2]} 27. Bg2 {[%clk 0:01:13]} 27... Nxa3 {[%clk
0:01:17]} 28. Bxe4+ {[%clk 0:01:13.5]} 28... dxe4+ {[%clk 0:01:17.7]} 29. Kc3
{[%clk 0:01:12.7]} 29... Be7 {[%clk 0:01:15.9]} 30. Kb2 {[%clk 0:01:06.9]} 30...
Nb5 {[%clk 0:01:15.7]} 31. b4 {[%clk 0:01:04.3]} 31... Ke6 {[%clk 0:01:13.1]}
32. Kb3 {[%clk 0:01:04.3]} 32... Kd5 {[%clk 0:01:13.3]} 33. Nb2 {[%clk 0:01:05]}
33... Nd6 {[%clk 0:01:10.5]} 34. Na4 {[%clk 0:00:59.9]} 34... Nb5 {[%clk
0:01:09.9]} 35. Nb2 {[%clk 0:01:00.3]} 35... Bd6 {[%clk 0:01:09.2]} 36. Nc4
{[%clk 0:01:00.4]} 36... Bc7 {[%clk 0:01:09.5]} 37. Nb2 {[%clk 0:00:59.7]} 37...
f6 {[%clk 0:01:02]} 38. Na4 {[%clk 0:00:58.7]} 38... Bd6 {[%clk 0:00:59.1]} 39.
Nb2 {[%clk 0:00:58.9]} 39... Ke6 {[%clk 0:00:53.7]} 40. Nc4 {[%clk 0:00:56.1]}
40... Bc7 {[%clk 0:00:52.8]} 41. Nd2 {[%clk 0:00:56.2]} 41... f5 {[%clk
0:00:51.9]} 42. Nb1 {[%clk 0:00:51.6]} 42... Bd6 {[%clk 0:00:50.2]} 43. Nd2
{[%clk 0:00:50.6]} 43... Nc7 {[%clk 0:00:49]} 44. Nc4 {[%clk 0:00:50.9]} 44...
b6 {[%clk 0:00:47.6]} 45. Na3 {[%clk 0:00:46.7]} 45... Nd5 {[%clk 0:00:47.1]}
46. Nc4 {[%clk 0:00:44.8]} 46... Bc7 {[%clk 0:00:46.9]} 47. Nb2 {[%clk
0:00:44.7]} 47... Kd7 {[%clk 0:00:42.9]} 48. Nc4 {[%clk 0:00:44.2]} 48... Bd6
{[%clk 0:00:42.9]} 49. Na3 {[%clk 0:00:43.1]} 49... Kc7 {[%clk 0:00:42.7]} 50.
Bd2 {[%clk 0:00:42.6]} 50... Kd7 {[%clk 0:00:31.3]} 51. Nc2 {[%clk 0:00:40.4]}
51... b5 {[%clk 0:00:24.4]} 52. Ne1 {[%clk 0:00:40.3]} 52... Ke6 {[%clk
0:00:23.6]} 53. Ng2 {[%clk 0:00:39.4]} 53... Nb6 {[%clk 0:00:23.8]} 54. Be1
{[%clk 0:00:34.4]} 54... Nc4 {[%clk 0:00:24]} 55. Nh4 {[%clk 0:00:34.9]} 55...
Be7 {[%clk 0:00:23.6]} 56. Ng6 {[%clk 0:00:34.9]} 56... Bg5 {[%clk 0:00:23.9]}
57. Nf8+ {[%clk 0:00:33.8]} 57... Ke7 {[%clk 0:00:22.5]} 58. Ng6+ {[%clk
0:00:31.7]} 58... Kf7 {[%clk 0:00:21.9]} 59. Nf4 {[%clk 0:00:18.6]} 59... Bxf4
{[%clk 0:00:21.8]} 60. exf4 {[%clk 0:00:19.5]} 60... Ke6 {[%clk 0:00:21.9]} 61.
Bc3 {[%clk 0:00:17.8]} 61... Kd5 {[%clk 0:00:21.6]} 62. Kc2 {[%clk 0:00:18.4]}
62... e3 {[%clk 0:00:21.5]} 0-1

[Event "*** Titled Tuesday Blitz"]
[Site "Chess.com"]
[Date "2021.04.06"]
[Round "9"]
[White "PushingpawnsNYC"]
[Black "ChainsOfFantasia"]
[Result "0-1"]
[WhiteElo "2300"]
[BlackElo "2423"]
[TimeControl "180+1"]
[EndTime "11:46:36 PDT"]
[Termination "ChainsOfFantasia won on time"]

1. e4 {[%clk 0:03:00.9]} 1... e6 {[%clk 0:02:58.6]} 2. d4 {[%clk 0:03:00]} 2...
d5 {[%clk 0:02:58.6]} 3. Bd3 {[%clk 0:03:00.1]} 3... dxe4 {[%clk 0:02:57.8]} 4.
Bxe4 {[%clk 0:03:00.4]} 4... Nf6 {[%clk 0:02:58.3]} 5. Bf3 {[%clk 0:03:00.8]}
5... c5 {[%clk 0:02:58.8]} 6. Ne2 {[%clk 0:02:59.8]} 6... Nc6 {[%clk 0:02:58]}
7. Be3 {[%clk 0:02:58.6]} 7... e5 {[%clk 0:02:57.9]} 8. Bxc6+ {[%clk 0:02:23.3]}
8... bxc6 {[%clk 0:02:58.8]} 9. dxc5 {[%clk 0:02:15.7]} 9... Qxd1+ {[%clk
0:02:59.7]} 10. Kxd1 {[%clk 0:02:15.7]} 10... Ng4 {[%clk 0:02:52.9]} 11. b4
{[%clk 0:02:12.2]} 11... a5 {[%clk 0:02:34.6]} 12. c3 {[%clk 0:02:10.8]} 12...
Be6 {[%clk 0:02:18.3]} 13. Kc2 {[%clk 0:01:57.6]} 13... Be7 {[%clk 0:01:42.4]}
14. Nd2 {[%clk 0:01:49.7]} 14... O-O {[%clk 0:01:19.8]} 15. a3 {[%clk
0:01:34.5]} 15... f5 {[%clk 0:01:03.3]} 16. Nb3 {[%clk 0:01:24.2]} 16... f4
{[%clk 0:00:42.8]} 17. Bd2 {[%clk 0:01:20.5]} 17... a4 {[%clk 0:00:39.6]} 18.
Na5 {[%clk 0:01:19]} 18... Nxf2 {[%clk 0:00:31.4]} 19. Raf1 {[%clk 0:01:03.5]}
19... Ne4 {[%clk 0:00:26.2]} 20. Ng1 {[%clk 0:00:46.9]} 20... Rac8 {[%clk
0:00:22.5]} 21. Nf3 {[%clk 0:00:45.8]} 21... Bf6 {[%clk 0:00:19.9]} 22. Bc1
{[%clk 0:00:40.7]} 22... Bf5 {[%clk 0:00:20]} 23. Kb2 {[%clk 0:00:40.6]} 23...
g5 {[%clk 0:00:19.3]} 24. h3 {[%clk 0:00:40.1]} 24... Rfd8 {[%clk 0:00:19]} 25.
Rd1 {[%clk 0:00:38.4]} 25... Nf2 {[%clk 0:00:17.5]} 26. Rxd8+ {[%clk 0:00:36.1]}
26... Bxd8 {[%clk 0:00:15.9]} 27. Rf1 {[%clk 0:00:33.9]} 27... Nd3+ {[%clk
0:00:15.9]} 28. Ka1 {[%clk 0:00:32.3]} 28... Bxa5 {[%clk 0:00:16.8]} 29. bxa5
{[%clk 0:00:30.9]} 29... Rb8 {[%clk 0:00:14.5]} 30. g4 {[%clk 0:00:23.4]} 30...
Bg6 {[%clk 0:00:10.9]} 31. Nd2 {[%clk 0:00:18.4]} 31... Nxc5 {[%clk 0:00:10.3]}
32. Bb2 {[%clk 0:00:16.8]} 32... e4 {[%clk 0:00:10.2]} 33. h4 {[%clk 0:00:16.2]}
33... e3 {[%clk 0:00:08.4]} 34. Nf3 {[%clk 0:00:15.6]} 34... Bd3 {[%clk
0:00:05.7]} 35. Rh1 {[%clk 0:00:13.3]} 35... e2 {[%clk 0:00:05.8]} 36. Nxg5
{[%clk 0:00:10.8]} 36... Nb3+ {[%clk 0:00:04.2]} 37. Ka2 {[%clk 0:00:10.7]}
37... h6 {[%clk 0:00:04.7]} 38. Ne6 {[%clk 0:00:10.2]} 38... Be4 {[%clk
0:00:03.9]} 39. Re1 {[%clk 0:00:09]} 39... f3 {[%clk 0:00:04.3]} 40. Nd4 {[%clk
0:00:07.3]} 40... Nxd4 {[%clk 0:00:02.8]} 41. cxd4 {[%clk 0:00:07]} 41... f2
{[%clk 0:00:03.7]} 42. Rxe2 {[%clk 0:00:07.3]} 42... f1=Q {[%clk 0:00:04.2]} 43.
Rxe4 {[%clk 0:00:07.7]} 43... Qc4+ {[%clk 0:00:04.6]} 44. Ka1 {[%clk 0:00:07.5]}
44... Qf1+ {[%clk 0:00:04.4]} 45. Ka2 {[%clk 0:00:07]} 45... Qc4+ {[%clk
0:00:05.3]} 46. Ka1 {[%clk 0:00:07.1]} 46... Qd5 {[%clk 0:00:06.2]} 47. Re5
{[%clk 0:00:06.3]} 47... Qh1+ {[%clk 0:00:05.3]} 48. Ka2 {[%clk 0:00:04.8]}
48... Qf3 {[%clk 0:00:06.2]} 49. Bc1 {[%clk 0:00:01.6]} 49... Qb3+ {[%clk
0:00:06.4]} 0-1

[Event "*** Titled Tuesday Blitz"]
[Site "Chess.com"]
[Date "2021.04.06"]
[Round "9"]
[White "Hikaru"]
[Black "Sibelephant"]
[Result "1-0"]
[WhiteElo "3237"]
[BlackElo "3116"]
[TimeControl "180+1"]
[EndTime "11:46:37 PDT"]
[Termination "Hikaru won by resignation"]

1. Nf3 {[%clk 0:02:57.3]} 1... d5 {[%clk 0:02:58.6]} 2. b3 {[%clk 0:02:55.4]}
2... Bg4 {[%clk 0:02:52.5]} 3. Bb2 {[%clk 0:02:55.5]} 3... Nd7 {[%clk
0:02:52.5]} 4. d4 {[%clk 0:02:53.2]} 4... e6 {[%clk 0:02:49]} 5. Nbd2 {[%clk
0:02:52.9]} 5... Ngf6 {[%clk 0:02:49.3]} 6. e3 {[%clk 0:02:52.9]} 6... Bd6
{[%clk 0:02:48.1]} 7. Be2 {[%clk 0:02:52.7]} 7... O-O {[%clk 0:02:47.5]} 8. O-O
{[%clk 0:02:51.7]} 8... Qe7 {[%clk 0:02:45]} 9. a3 {[%clk 0:02:49.9]} 9... c5
{[%clk 0:02:32.7]} 10. dxc5 {[%clk 0:02:45.6]} 10... Nxc5 {[%clk 0:02:29.3]} 11.
c4 {[%clk 0:02:45]} 11... dxc4 {[%clk 0:02:19.9]} 12. Nxc4 {[%clk 0:02:39.1]}
12... Bc7 {[%clk 0:02:20.2]} 13. Nd4 {[%clk 0:02:34.9]} 13... Bxe2 {[%clk
0:02:19.3]} 14. Qxe2 {[%clk 0:02:34.7]} 14... a6 {[%clk 0:01:50.1]} 15. a4
{[%clk 0:02:31.5]} 15... e5 {[%clk 0:01:28]} 16. Nf3 {[%clk 0:02:11.7]} 16... e4
{[%clk 0:01:27.3]} 17. Nd4 {[%clk 0:02:09.6]} 17... Rfd8 {[%clk 0:00:41.8]} 18.
Ba3 {[%clk 0:02:01.9]} 18... Rd5 {[%clk 0:00:41.8]} 19. Rac1 {[%clk 0:01:54.2]}
19... Qd7 {[%clk 0:00:32.3]} 20. Bxc5 {[%clk 0:01:46.9]} 20... Rxc5 {[%clk
0:00:32.6]} 21. Rfd1 {[%clk 0:01:38.4]} 21... Rd5 {[%clk 0:00:32.5]} 22. Nc2
{[%clk 0:01:16.4]} 22... Rd8 {[%clk 0:00:24.1]} 23. Rxd5 {[%clk 0:01:14.1]}
23... Nxd5 {[%clk 0:00:22.2]} 24. Nd4 {[%clk 0:01:12.8]} 24... b5 {[%clk
0:00:20.2]} 25. axb5 {[%clk 0:01:11.3]} 25... axb5 {[%clk 0:00:21.1]} 26. Nd2
{[%clk 0:01:10.5]} 26... Be5 {[%clk 0:00:06]} 27. Qxb5 {[%clk 0:00:59.1]} 27...
h5 {[%clk 0:00:02.5]} 28. Qxd7 {[%clk 0:00:44.2]} 28... Rxd7 {[%clk 0:00:03.4]}
29. Nxe4 {[%clk 0:00:39.4]} 29... Bxd4 {[%clk 0:00:03.6]} 30. exd4 {[%clk
0:00:39.5]} 30... Nf4 {[%clk 0:00:04.2]} 31. Rd1 {[%clk 0:00:38.9]} 31... Rxd4
{[%clk 0:00:02]} 32. Rxd4 {[%clk 0:00:37.4]} 32... Ne2+ {[%clk 0:00:02.6]} 33.
Kf1 {[%clk 0:00:38]} 33... Nxd4 {[%clk 0:00:03.5]} 34. b4 {[%clk 0:00:38.2]}
34... Kf8 {[%clk 0:00:04]} 35. f3 {[%clk 0:00:27]} 35... Ke7 {[%clk 0:00:04.2]}
36. Kf2 {[%clk 0:00:27.6]} 36... Ke6 {[%clk 0:00:04.7]} 37. Nc3 {[%clk
0:00:27.5]} 37... Kd6 {[%clk 0:00:03.1]} 38. Kg3 {[%clk 0:00:26.7]} 38... g5
{[%clk 0:00:01.7]} 39. Ne4+ {[%clk 0:00:26.2]} 39... Ke5 {[%clk 0:00:02.2]} 40.
Nxg5 {[%clk 0:00:26.5]} 40... Nf5+ {[%clk 0:00:02.4]} 41. Kf2 {[%clk 0:00:26.6]}
41... f6 {[%clk 0:00:03.1]} 42. Ne4 {[%clk 0:00:26.9]} 42... Nd4 {[%clk
0:00:03.5]} 43. h4 {[%clk 0:00:23.2]} 43... Nf5 {[%clk 0:00:03.3]} 44. g3 {[%clk
0:00:19.7]} 44... Nd4 {[%clk 0:00:03.5]} 45. Nc3 {[%clk 0:00:19.1]} 45... Kd6
{[%clk 0:00:03]} 46. Ne2 {[%clk 0:00:18.8]} 46... Ne6 {[%clk 0:00:02.3]} 47. g4
{[%clk 0:00:17.3]} 47... Ng7 {[%clk 0:00:01.4]} 48. Ng3 {[%clk 0:00:17]} 48...
hxg4 {[%clk 0:00:01.8]} 49. fxg4 {[%clk 0:00:17.7]} 49... Ke5 {[%clk 0:00:02.4]}
50. b5 {[%clk 0:00:17.8]} 50... Ne6 {[%clk 0:00:02.2]} 51. b6 {[%clk 0:00:17.9]}
51... Nc5 {[%clk 0:00:02.3]} 52. h5 {[%clk 0:00:18]} 52... Ke6 {[%clk
0:00:01.9]} 53. Nf5 {[%clk 0:00:18.5]} 53... Kf7 {[%clk 0:00:01.9]} 54. Nd6+
{[%clk 0:00:18.5]} 54... Kg7 {[%clk 0:00:01.7]} 55. b7 {[%clk 0:00:19]} 55...
Nd7 {[%clk 0:00:02.4]} 56. Ke3 {[%clk 0:00:19.5]} 56... Kh6 {[%clk 0:00:01.9]}
57. Kf4 {[%clk 0:00:19.6]} 57... Kg7 {[%clk 0:00:02.2]} 58. Kf5 {[%clk
0:00:20.2]} 58... Kh7 {[%clk 0:00:02.4]} 59. Ke6 {[%clk 0:00:20.5]} 59... Nb8
{[%clk 0:00:02.4]} 60. Kxf6 {[%clk 0:00:20.3]} 1-0

[Event "*** Titled Tuesday Blitz"]
[Site "Chess.com"]
[Date "2021.04.06"]
[Round "9"]
[White "Semetey"]
[Black "NikolaGry"]
[Result "0-1"]
[WhiteElo "2525"]
[BlackElo "2697"]
[TimeControl "180+1"]
[EndTime "11:46:37 PDT"]
[Termination "NikolaGry won on time"]

1. e4 {[%clk 0:03:00.9]} 1... d6 {[%clk 0:02:58.7]} 2. d4 {[%clk 0:02:59.9]}
2... Nf6 {[%clk 0:02:59.3]} 3. Bd3 {[%clk 0:02:58.9]} 3... e5 {[%clk 0:02:59]}
4. c3 {[%clk 0:02:59.1]} 4... Nbd7 {[%clk 0:02:54.3]} 5. Nf3 {[%clk 0:02:58.6]}
5... Be7 {[%clk 0:02:53.5]} 6. O-O {[%clk 0:02:58.7]} 6... O-O {[%clk
0:02:53.8]} 7. Re1 {[%clk 0:02:58.7]} 7... c6 {[%clk 0:02:54]} 8. Nbd2 {[%clk
0:02:58.4]} 8... Qc7 {[%clk 0:02:53.5]} 9. Nf1 {[%clk 0:02:58.6]} 9... Re8
{[%clk 0:02:46.7]} 10. Ng3 {[%clk 0:02:58.6]} 10... Nf8 {[%clk 0:02:38.6]} 11.
h3 {[%clk 0:02:53.5]} 11... h6 {[%clk 0:02:27.7]} 12. a4 {[%clk 0:02:53]} 12...
Bd7 {[%clk 0:02:25.8]} 13. Be3 {[%clk 0:02:35.1]} 13... Rad8 {[%clk 0:02:21.9]}
14. a5 {[%clk 0:02:19.5]} 14... c5 {[%clk 0:02:16.2]} 15. d5 {[%clk 0:02:05.8]}
15... Ng6 {[%clk 0:02:13.1]} 16. b4 {[%clk 0:02:03.3]} 16... Nf4 {[%clk
0:02:02]} 17. Bf1 {[%clk 0:02:03.2]} 17... b6 {[%clk 0:01:55.9]} 18. Qb3 {[%clk
0:01:46.5]} 18... g5 {[%clk 0:01:47.5]} 19. axb6 {[%clk 0:01:41.7]} 19... axb6
{[%clk 0:01:47]} 20. Ra6 {[%clk 0:01:25.8]} 20... Rb8 {[%clk 0:01:36.9]} 21.
Rea1 {[%clk 0:01:24.4]} 21... Rb7 {[%clk 0:01:26.7]} 22. Bxf4 {[%clk 0:01:16.2]}
22... exf4 {[%clk 0:01:22.5]} 23. Nf5 {[%clk 0:01:16]} 23... Bf8 {[%clk
0:01:17.8]} 24. Ra8 {[%clk 0:01:04.8]} 24... Rxa8 {[%clk 0:00:44.7]} 25. Rxa8
{[%clk 0:01:05.7]} 25... Rb8 {[%clk 0:00:41.4]} 26. Rxb8 {[%clk 0:01:03.8]}
26... Qxb8 {[%clk 0:00:41.5]} 27. bxc5 {[%clk 0:01:04.2]} 27... dxc5 {[%clk
0:00:41.2]} 28. Bd3 {[%clk 0:00:59.8]} 28... b5 {[%clk 0:00:40.9]} 29. c4 {[%clk
0:00:59.5]} 29... Bxf5 {[%clk 0:00:37.2]} 30. exf5 {[%clk 0:00:58.2]} 30... b4
{[%clk 0:00:37.5]} 31. Bc2 {[%clk 0:00:49]} 31... Qe8 {[%clk 0:00:34.2]} 32. Kf1
{[%clk 0:00:47.7]} 32... Bd6 {[%clk 0:00:32]} 33. Qa4 {[%clk 0:00:46.9]} 33...
Qxa4 {[%clk 0:00:27.5]} 34. Bxa4 {[%clk 0:00:46.4]} 34... Ne4 {[%clk 0:00:27.6]}
35. Bc2 {[%clk 0:00:42.5]} 35... Nf6 {[%clk 0:00:22.2]} 36. Nd2 {[%clk
0:00:42.2]} 36... Kg7 {[%clk 0:00:19.9]} 37. Ke2 {[%clk 0:00:42.5]} 37... Kf8
{[%clk 0:00:19.6]} 38. Kd3 {[%clk 0:00:41.5]} 38... Ke7 {[%clk 0:00:19.6]} 39.
Nb3 {[%clk 0:00:38.3]} 39... Nd7 {[%clk 0:00:18.7]} 40. Na5 {[%clk 0:00:38.4]}
40... Ne5+ {[%clk 0:00:18.4]} 41. Ke4 {[%clk 0:00:38.7]} 41... Bc7 {[%clk
0:00:15.3]} 42. Nb7 {[%clk 0:00:20.2]} 42... Nxc4 {[%clk 0:00:13]} 43. Nxc5
{[%clk 0:00:20.2]} 43... Nd6+ {[%clk 0:00:12.1]} 44. Kd4 {[%clk 0:00:18.8]}
44... Bb6 {[%clk 0:00:12]} 45. g4 {[%clk 0:00:15.9]} 45... Nb7 {[%clk
0:00:11.6]} 46. Kc4 {[%clk 0:00:08]} 46... Bxc5 {[%clk 0:00:11.3]} 47. f3 {[%clk
0:00:08.4]} 47... Kd6 {[%clk 0:00:11.3]} 48. Ba4 {[%clk 0:00:06.9]} 48... f6
{[%clk 0:00:10.9]} 49. Bb3 {[%clk 0:00:06]} 49... Na5+ {[%clk 0:00:10.9]} 50.
Kd3 {[%clk 0:00:05.3]} 50... Nxb3 {[%clk 0:00:11.8]} 0-1

[Event "*** Titled Tuesday Blitz"]
[Site "Chess.com"]
[Date "2021.04.06"]
[Round "9"]
[White "UKR_Master"]
[Black "ffbp3q"]
[Result "1-0"]
[WhiteElo "2494"]
[BlackElo "2373"]
[TimeControl "180+1"]
[EndTime "11:46:39 PDT"]
[Termination "UKR_Master won on time"]

1. e4 {[%clk 0:03:00.9]} 1... c5 {[%clk 0:02:59.2]} 2. Nf3 {[%clk 0:03:01]} 2...
d6 {[%clk 0:02:59]} 3. c3 {[%clk 0:03:01.6]} 3... Nf6 {[%clk 0:02:57.5]} 4. h3
{[%clk 0:03:02.2]} 4... g6 {[%clk 0:02:53]} 5. Bd3 {[%clk 0:03:02.8]} 5... Bg7
{[%clk 0:02:52.5]} 6. O-O {[%clk 0:03:03.4]} 6... O-O {[%clk 0:02:51.3]} 7. Bc2
{[%clk 0:03:04.1]} 7... Nc6 {[%clk 0:02:45.4]} 8. d4 {[%clk 0:03:04.7]} 8...
cxd4 {[%clk 0:02:41.9]} 9. cxd4 {[%clk 0:03:05.6]} 9... Bd7 {[%clk 0:02:39.3]}
10. Nc3 {[%clk 0:03:05.5]} 10... Rc8 {[%clk 0:02:36]} 11. Be3 {[%clk 0:03:03.8]}
11... a6 {[%clk 0:02:32.9]} 12. Rc1 {[%clk 0:03:03.7]} 12... Na5 {[%clk
0:02:29.7]} 13. e5 {[%clk 0:02:54.9]} 13... Ne8 {[%clk 0:02:14.5]} 14. Qe2
{[%clk 0:02:45.2]} 14... Nc4 {[%clk 0:02:10.4]} 15. Bb3 {[%clk 0:02:45.2]} 15...
Nxe3 {[%clk 0:02:06.5]} 16. Qxe3 {[%clk 0:02:46.1]} 16... e6 {[%clk 0:02:01.4]}
17. Ne4 {[%clk 0:02:42]} 17... Bc6 {[%clk 0:01:47.3]} 18. Rcd1 {[%clk
0:02:26.9]} 18... d5 {[%clk 0:01:44.4]} 19. Nc3 {[%clk 0:02:15]} 19... Nc7
{[%clk 0:01:33.3]} 20. Nh2 {[%clk 0:02:10.7]} 20... Nb5 {[%clk 0:01:25.4]} 21.
Ne2 {[%clk 0:02:10.6]} 21... Na7 {[%clk 0:01:21.2]} 22. Rfe1 {[%clk 0:02:09.8]}
22... Bb5 {[%clk 0:01:21]} 23. Nf4 {[%clk 0:02:09.2]} 23... Bc4 {[%clk
0:01:15.5]} 24. Ng4 {[%clk 0:01:36.5]} 24... Qe7 {[%clk 0:01:05.5]} 25. Bxc4
{[%clk 0:01:16.4]} 25... Rxc4 {[%clk 0:01:04.6]} 26. Qg3 {[%clk 0:01:16]} 26...
Rfc8 {[%clk 0:00:56.4]} 27. Re2 {[%clk 0:01:15]} 27... Rc2 {[%clk 0:00:54.9]}
28. Red2 {[%clk 0:01:14.6]} 28... R8c6 {[%clk 0:00:37.9]} 29. h4 {[%clk
0:01:12.7]} 29... h5 {[%clk 0:00:22.5]} 30. Ne3 {[%clk 0:00:57.2]} 30... Rxd2
{[%clk 0:00:22.4]} 31. Rxd2 {[%clk 0:00:57.9]} 31... Rc1+ {[%clk 0:00:21.6]} 32.
Kh2 {[%clk 0:00:57.9]} 32... Nc6 {[%clk 0:00:21.2]} 33. Nd3 {[%clk 0:00:42.2]}
33... Ra1 {[%clk 0:00:19.3]} 34. Nc5 {[%clk 0:00:27]} 34... Nxd4 {[%clk
0:00:16.8]} 35. Nxb7 {[%clk 0:00:19.8]} 35... Qxb7 {[%clk 0:00:13.3]} 36. Rxd4
{[%clk 0:00:20.1]} 36... Qxb2 {[%clk 0:00:13.3]} 37. Qf4 {[%clk 0:00:17.3]}
37... Rxa2 {[%clk 0:00:10.8]} 38. Kg3 {[%clk 0:00:17.3]} 38... Ra3 {[%clk
0:00:04.4]} 39. Kf3 {[%clk 0:00:16.2]} 39... Rb3 {[%clk 0:00:03.8]} 40. Ra4
{[%clk 0:00:14.2]} 40... Rb6 {[%clk 0:00:03.3]} 41. g4 {[%clk 0:00:09.6]} 41...
Qxe5 {[%clk 0:00:02.7]} 42. gxh5 {[%clk 0:00:08]} 42... Qxf4+ {[%clk 0:00:02.2]}
43. Kxf4 {[%clk 0:00:08.9]} 43... gxh5 {[%clk 0:00:02.6]} 44. Ra5 {[%clk
0:00:09.8]} 44... Rc6 {[%clk 0:00:02.1]} 45. Ng2 {[%clk 0:00:07.4]} 45... Kf8
{[%clk 0:00:02]} 46. Kf3 {[%clk 0:00:07.9]} 46... Ke7 {[%clk 0:00:02.1]} 47. Nf4
{[%clk 0:00:08.8]} 47... Kd6 {[%clk 0:00:02]} 48. Nxh5 {[%clk 0:00:09.3]} 48...
d4 {[%clk 0:00:02.4]} 49. Nxg7 {[%clk 0:00:09.5]} 49... d3 {[%clk 0:00:02.3]}
50. Ke3 {[%clk 0:00:09.7]} 50... Rc3 {[%clk 0:00:01.5]} 51. h5 {[%clk
0:00:09.7]} 1-0

[Event "*** Titled Tuesday Blitz"]
[Site "Chess.com"]
[Date "2021.04.06"]
[Round "9"]
[White "PchelkinVK"]
[Black "alejogarcia1999"]
[Result "1-0"]
[WhiteElo "2581"]
[BlackElo "2418"]
[TimeControl "180+1"]
[EndTime "11:46:40 PDT"]
[Termination "PchelkinVK won by checkmate"]

1. d4 {[%clk 0:03:00.9]} 1... Nf6 {[%clk 0:02:59.8]} 2. Nc3 {[%clk 0:03:01.1]}
2... d5 {[%clk 0:02:59.1]} 3. Bf4 {[%clk 0:03:01.1]} 3... c6 {[%clk 0:02:59.7]}
4. Nf3 {[%clk 0:03:01.5]} 4... g6 {[%clk 0:02:59.8]} 5. Qd2 {[%clk 0:03:01.3]}
5... h6 {[%clk 0:02:58.4]} 6. Ne5 {[%clk 0:03:01.3]} 6... Bg7 {[%clk 0:02:57.8]}
7. f3 {[%clk 0:03:00.4]} 7... Qb6 {[%clk 0:02:56.6]} 8. O-O-O {[%clk 0:03:00]}
8... a5 {[%clk 0:02:54.7]} 9. g4 {[%clk 0:02:58.8]} 9... a4 {[%clk 0:02:53.6]}
10. a3 {[%clk 0:02:49.4]} 10... Qa5 {[%clk 0:02:50.4]} 11. Kb1 {[%clk
0:02:35.9]} 11... b5 {[%clk 0:02:49.7]} 12. Nd3 {[%clk 0:02:27.4]} 12... Qb6
{[%clk 0:02:34.5]} 13. h4 {[%clk 0:02:16.4]} 13... Na6 {[%clk 0:02:21.1]} 14.
Na2 {[%clk 0:02:10.9]} 14... h5 {[%clk 0:01:55.8]} 15. g5 {[%clk 0:01:38.1]}
15... Nd7 {[%clk 0:01:55.4]} 16. e3 {[%clk 0:01:36.6]} 16... O-O {[%clk
0:01:50.1]} 17. Bh3 {[%clk 0:01:34.8]} 17... e6 {[%clk 0:01:37]} 18. Bd6 {[%clk
0:01:05.2]} 18... Re8 {[%clk 0:01:34]} 19. Nab4 {[%clk 0:00:59.3]} 19... c5
{[%clk 0:00:34.7]} 20. Nxa6 {[%clk 0:00:58.3]} 20... Qxd6 {[%clk 0:00:34.2]} 21.
Naxc5 {[%clk 0:00:56.3]} 21... e5 {[%clk 0:00:31.3]} 22. Nxd7 {[%clk 0:00:48.2]}
22... Bxd7 {[%clk 0:00:29.7]} 23. Bxd7 {[%clk 0:00:48.9]} 23... Qxd7 {[%clk
0:00:27.9]} 24. dxe5 {[%clk 0:00:33.6]} 24... b4 {[%clk 0:00:24.9]} 25. Qxb4
{[%clk 0:00:30.4]} 25... Rab8 {[%clk 0:00:22.8]} 26. Qd4 {[%clk 0:00:30.3]}
26... Qb5 {[%clk 0:00:20.6]} 27. f4 {[%clk 0:00:28.1]} 27... Bf8 {[%clk
0:00:18.3]} 28. Ka2 {[%clk 0:00:26.9]} 28... Re6 {[%clk 0:00:17.8]} 29. Nb4
{[%clk 0:00:24.8]} 29... Bxb4 {[%clk 0:00:16.8]} 30. Qxb4 {[%clk 0:00:25.1]}
30... Qe8 {[%clk 0:00:15.6]} 31. Qd4 {[%clk 0:00:22.5]} 31... Reb6 {[%clk
0:00:15.7]} 32. Rb1 {[%clk 0:00:22.8]} 32... Qe6 {[%clk 0:00:15.6]} 33. Rhd1
{[%clk 0:00:22.2]} 33... Rb5 {[%clk 0:00:16]} 34. Ka1 {[%clk 0:00:20.1]} 34...
Qa6 {[%clk 0:00:15.1]} 35. e4 {[%clk 0:00:18.2]} 35... dxe4 {[%clk 0:00:13.6]}
36. Qxe4 {[%clk 0:00:18.3]} 36... Qc8 {[%clk 0:00:13.1]} 37. Qxa4 {[%clk
0:00:12.9]} 37... Qh3 {[%clk 0:00:07.1]} 38. e6 {[%clk 0:00:10.4]} 38... Qxe6
{[%clk 0:00:06.3]} 39. Re1 {[%clk 0:00:07.7]} 39... Qh3 {[%clk 0:00:05.9]} 40.
c4 {[%clk 0:00:05.3]} 40... R5b7 {[%clk 0:00:02.6]} 41. Re8+ {[%clk 0:00:05.6]}
41... Rxe8 {[%clk 0:00:01.7]} 42. Qxe8+ {[%clk 0:00:06.5]} 42... Kh7 {[%clk
0:00:01.9]} 43. Qe5 {[%clk 0:00:06.2]} 43... Qd7 {[%clk 0:00:01.8]} 44. Qd5
{[%clk 0:00:06.1]} 44... Qc7 {[%clk 0:00:01.7]} 45. c5 {[%clk 0:00:06]} 45...
Rb5 {[%clk 0:00:01.5]} 46. Rc1 {[%clk 0:00:05.8]} 46... Qa7 {[%clk 0:00:01.6]}
47. Ka2 {[%clk 0:00:05.2]} 47... Qb8 {[%clk 0:00:01.8]} 48. Qxf7+ {[%clk
0:00:05]} 48... Kh8 {[%clk 0:00:02.2]} 49. Qf6+ {[%clk 0:00:05.3]} 49... Kh7
{[%clk 0:00:02.7]} 50. Rd1 {[%clk 0:00:05.7]} 50... Rb7 {[%clk 0:00:02.4]} 51.
Rd8 {[%clk 0:00:05.6]} 51... Qc7 {[%clk 0:00:02.1]} 52. Qh8# {[%clk 0:00:05.7]}
1-0